bitfinex/quotes_ETHUSD_20250824
["timestamp","ask_amount","ask_price","bid_price","bid_amount"]
[1756039267384,0.85326,4750.5,4750.3,0.001]
[1756039267670,0.4514,4750.4,4750.3,0.001]
[1756039267844,0.74566,4750.4,4750.3,0.001]
[1756039269040,1.19761295,4750.4,4750.3,0.001]
[1756039271477,0.45361295,4750.4,4750.3,2.1061302]
[1756039271677,0.10726,4750.4,4750.3,2.1061302]
[1756039272545,0.10726,4750.4,4750.3,2.87906296]
[1756039273857,0.00166,4750.4,4750.3,2.87906296]
[1756039274181,0.00166,4750.4,4750.3,2.98466296]
[1756039274561,1e-08,4750.4,4750.3,2.98466296]
[1756039274941,0.002,4750.6,4750.3,2.98466296]
[1756039275142,0.002,4750.6,4750.4,5.99678604]
[1756039275345,0.002,4751.0,4750.7,2.10493385]
[1756039275566,0.002,4751.0,4750.8,3.517]
[1756039275742,1e-08,4751.5,4751.4,2.10464284]
[1756039275945,1e-08,4751.5,4751.4,7.34624284]
[1756039276178,1e-08,4751.8,4751.7,2.10450996]
[1756039276388,1e-08,4751.8,4751.7,5.72710996]
[1756039282801,1e-08,4752.1,4752.0,2.1043771]
[1756039283098,1e-08,4752.1,4752.0,5.6203771]
[1756039283266,1e-08,4752.1,4752.0,6.50901944]
[1756039283595,1e-08,4752.1,4752.0,6.59335244]
[1756039283997,1e-08,4752.3,4752.2,2.10428854]
[1756039284201,1e-08,4752.4,4752.2,5.62028854]
[1756039284399,1e-08,4752.4,4752.3,1.619]
[1756039284565,1e-08,4752.4,4752.3,4.54447065]
[1756039284766,1e-08,4752.8,4752.5,2.10413558]
[1756039285003,1e-08,4752.8,4752.7,2.10406716]
[1756039285204,1e-08,4752.8,4752.7,5.20966716]
[1756039285499,0.002,4753.1,4752.7,5.20966716]
[1756039285500,1e-08,4753.1,4753.0,2.10393435]
[1756039285700,1e-08,4753.1,4753.0,6.70075985]
[1756039285881,1e-08,4753.1,4753.0,6.80555985]
[1756039286813,1e-08,4753.1,4753.0,6.88987085]
[1756039294428,1e-08,4753.1,4753.0,6.88887085]
[1756039296133,0.44750001,4753.1,4753.0,6.88887085]
[1756039299448,0.75190001,4753.1,4753.0,6.88887085]
[1756039300048,0.75190001,4753.1,4753.0,3.37387085]
[1756039300227,0.75190001,4753.1,4753.0,5.80704535]
[1756039303537,1e-08,4753.1,4753.0,5.80704535]
[1756039304350,1e-08,4753.1,4753.0,5.80804535]
[1756039305247,1e-08,4753.1,4753.0,2.29404535]
[1756039305447,0.44750001,4753.1,4753.0,5.80804535]
[1756039305652,0.44750001,4753.1,4753.0,6.89925015]
[1756039308074,0.04,4753.4,4753.3,2.10380156]
[1756039308375,0.3444,4753.4,4753.3,7.23580156]
[1756039308547,0.3444,4753.4,4753.3,7.34060156]
[1756039308750,0.04,4753.4,4753.3,7.42491556]
[1756039308962,0.04,4753.4,4753.3,9.08161441]
[1756039309246,1e-08,4753.6,4753.5,2.10371305]
[1756039309457,1e-08,4753.6,4753.5,5.91231305]
[1756039310173,1e-08,4753.6,4753.5,5.61771305]
[1756039310383,0.30440001,4753.6,4753.5,6.91717261]
[1756039310681,0.75190001,4753.6,4753.5,6.91717261]
[1756039311589,0.75190001,4753.6,4753.5,7.54948561]
[1756039311798,0.75190001,4753.6,4753.5,6.91717261]
[1756039312088,1e-08,4753.6,4753.5,6.91717261]
[1756039313198,0.31260001,4753.6,4753.5,7.02197261]
[1756039313362,0.74820001,4753.6,4753.5,7.02197261]
[1756039314285,0.74820001,4753.6,4753.5,7.65430561]
[1756039316895,0.74820001,4753.6,4753.5,9.87330561]
[1756039317190,0.74820001,4753.6,4753.5,7.65430561]
[1756039318662,1e-08,4753.6,4753.5,7.65430561]
[1756039320066,1e-08,4753.6,4753.5,7.94390561]
[1756039320889,1e-08,4753.6,4753.5,7.65430561]
[1756039321095,0.31260001,4753.6,4753.5,7.65430561]
[1756039321285,0.74820001,4753.6,4753.5,7.65430561]
[1756039322265,0.31260001,4753.6,4753.5,7.65430561]
[1756039322465,0.74820001,4753.6,4753.5,7.65430561]
[1756039323066,1e-08,4753.6,4753.5,7.65430561]
[1756039324810,1e-08,4753.8,4753.7,2.10362454]
[1756039324968,1e-08,4753.8,4753.7,5.90622454]
[1756039325391,1e-08,4753.8,4753.7,6.38182454]
[1756039328702,1e-08,4753.8,4753.7,6.09222454]
[1756039331201,1e-08,4753.8,4753.7,6.38182454]
[1756039331404,1e-08,4753.8,4753.7,7.8766304]
[1756039332003,1e-08,4753.8,4753.7,10.8766304]
[1756039342132,1e-08,4753.8,4753.7,10.5870304]
[1756039347128,1e-08,4753.8,4753.7,12.8060304]
[1756039347332,1e-08,4753.8,4753.7,10.5870304]
[1756039347514,0.77730001,4753.8,4753.7,10.5870304]
[1756039347718,1e-08,4753.8,4753.7,10.5870304]
[1756039348324,0.77730001,4753.8,4753.7,10.5870304]
[1756039350069,0.77730001,4753.8,4753.7,2.57922454]
[1756039350421,0.77730001,4753.8,4753.7,5.61662454]
[1756039351257,0.77730001,4753.8,4753.7,2.10362454]
[1756039351435,0.77730001,4753.8,4753.7,5.61662454]
[1756039352829,0.5,4753.6,4753.5,0.001]
[1756039353159,0.5,4753.6,4753.5,3.514]
[1756039353160,0.9184,4753.6,4753.5,3.514]
[1756039353460,1.3821,4753.6,4753.5,0.001]
[1756039353828,1.3821,4753.6,4753.5,3.514]
[1756039354027,1.74450474,4753.6,4753.5,3.514]
[1756039354240,1.3821,4753.6,4753.5,3.514]
[1756039356923,1.3821,4753.6,4753.5,0.001]
[1756039357122,1.3821,4753.6,4753.5,3.514]
[1756039357536,1.3821,4753.6,4753.5,5.61771305]
[1756039358463,0.5,4753.7,4753.6,2.10366879]
[1756039358662,1e-08,4753.8,4753.7,2.10362454]
[1756039358825,1e-08,4753.8,4753.7,6.21332454]
[1756039361035,1e-08,4753.8,4753.7,6.29762754]
[1756039361265,1e-08,4753.8,4753.7,7.61392465]
[1756039362044,1e-08,4753.8,4753.7,10.61392465]
[1756039365540,1e-08,4753.8,4753.7,10.30492465]
[1756039366367,1e-08,4753.8,4753.7,6.79192465]
[1756039366540,1e-08,4753.8,4753.7,10.30492465]
[1756039368663,0.002,4754.6,4754.2,3.66]
[1756039368863,0.022,4754.8,4754.5,2.39097058]
[1756039369068,0.022,4754.8,4754.7,2.10318211]
[1756039369267,0.022,4754.8,4754.7,2.39088211]
[1756039369469,1e-08,4754.8,4754.7,5.39088211]
[1756039369683,1e-08,4754.8,4754.7,6.92851329]
[1756039369837,1e-08,4754.8,4754.7,7.47051329]
[1756039370432,1e-08,4754.8,4754.7,7.77951329]
[1756039370837,1e-08,4754.8,4754.7,7.47051329]
[1756039373443,1e-08,4754.8,4754.7,6.97051329]
[1756039374254,0.30400001,4754.8,4754.7,10.19581329]
[1756039374588,0.74640001,4754.8,4754.7,10.19581329]
[1756039378683,0.74640001,4754.8,4754.7,10.19481329]
[1756039379094,0.74640001,4754.8,4754.7,2.14518211]
[1756039379282,0.74640001,4754.8,4754.7,5.65718211]
[1756039380702,1e-08,4754.8,4754.7,5.96818211]
[1756039381084,1e-08,4754.8,4754.7,5.65718211]
[1756039382093,0.74640001,4754.8,4754.7,5.65718211]
[1756039383205,1e-08,4754.8,4754.7,5.65718211]
[1756039383371,1e-08,4754.8,4754.7,6.81584329]
[1756039386102,0.74640001,4754.8,4754.7,6.81584329]
[1756039386461,1e-08,4754.8,4754.7,7.12684329]
[1756039386666,1e-08,4754.8,4754.7,7.23164329]
[1756039387099,1e-08,4754.8,4754.7,6.92064329]
[1756039387503,1e-08,4754.8,4754.7,7.23164329]
[1756039388977,1e-08,4754.8,4754.7,6.92064329]
[1756039389500,1e-08,4754.8,4754.7,7.89164329]
[1756039391917,1e-08,4754.8,4754.7,10.89164329]
[1756039392212,1e-08,4754.8,4754.7,11.20064329]
[1756039392716,1e-08,4754.8,4754.7,10.89164329]
[1756039396811,1e-08,4754.8,4754.7,13.11064329]
[1756039398085,1e-08,4754.8,4754.7,12.79964329]
[1756039398288,0.74640001,4754.8,4754.7,12.79964329]
[1756039398491,1e-08,4754.8,4754.7,12.79964329]
[1756039399615,1e-08,4754.8,4754.7,13.11064329]
[1756039400394,1e-08,4755.4,4755.1,2.10298332]
[1756039400693,0.4644,4755.8,4755.4,0.66]
[1756039400694,1e-08,4755.8,4755.4,0.66]
[1756039401017,1e-08,4755.8,4755.7,2.41373987]
[1756039401220,1e-08,4755.8,4755.7,8.92573987]
[1756039401415,1e-08,4755.8,4755.7,9.03053987]
[1756039401635,1e-08,4755.8,4755.7,9.47493987]
[1756039401829,1e-08,4755.8,4755.7,11.13090622]
[1756039403909,1e-08,4756.2,4756.1,2.10256302]
[1756039404243,1e-08,4756.2,4756.1,10.63856302]
[1756039404634,1e-08,4756.2,4756.1,11.14256302]
[1756039409144,1e-08,4756.2,4756.1,10.83936302]
[1756039409369,1e-08,4756.2,4756.1,12.73133301]
[1756039410239,0.76840001,4756.2,4756.1,12.73133301]
[1756039411269,1e-08,4756.2,4756.1,12.73133301]
[1756039411474,0.002,4756.7,4756.6,2.102342]
[1756039411643,0.002,4756.7,4756.6,5.613342]
[1756039411843,0.002,4756.7,4756.6,6.48971712]
[1756039412260,0.002,4756.7,4756.6,6.98971712]
[1756039412973,0.002,4756.7,4756.6,7.29291712]
[1756039413277,1e-08,4756.7,4756.6,10.29291712]
[1756039413580,1e-08,4756.8,4756.7,2.10229781]
[1756039413789,1e-08,4756.8,4756.7,6.85526022]
[1756039414142,1e-08,4756.8,4756.7,7.98126022]
[1756039414774,1e-08,4756.8,4756.7,8.41456022]
[1756039415079,1e-08,4757.2,4757.1,5.76212104]
[1756039415269,1e-08,4757.2,4757.1,12.76468805]
[1756039415576,1e-08,4757.4,4757.3,2.76203266]
[1756039415740,1e-08,4757.4,4757.3,9.57523266]
[1756039415943,1e-08,4757.4,4757.3,10.00853266]
[1756039416781,1e-08,4757.4,4757.3,10.50853266]
[1756039416956,1e-08,4757.4,4757.3,12.53113362]
[1756039418248,1e-08,4757.8,4757.7,2.10185593]
[1756039418444,1e-08,4757.8,4757.7,9.01985593]
[1756039418875,1e-08,4757.8,4757.7,9.67985593]
[1756039419179,1e-08,4757.8,4757.7,11.58572727]
[1756039419347,1e-08,4757.8,4757.7,12.01902727]
[1756039419683,1e-08,4757.8,4757.7,14.23802727]
[1756039421466,1e-08,4758.4,4757.8,3.0]
[1756039421646,1e-08,4758.4,4758.3,5.8663909]
[1756039421846,1e-08,4758.4,4758.3,12.36309593]
[1756039422046,1e-08,4758.4,4758.3,12.66629593]
[1756039422472,1e-08,4758.4,4758.3,13.16629593]
[1756039423091,1e-08,4758.4,4758.3,13.59959593]
[1756039428355,1e-08,4758.4,4758.3,15.71379593]
[1756039428554,1e-08,4758.4,4758.3,15.81859593]
[1756039430064,0.042,4759.4,4759.3,2.10114932]
[1756039430278,1e-08,4759.4,4759.3,10.71238593]
[1756039430465,1e-08,4759.4,4759.3,10.81718593]
[1756039430665,1e-08,4759.4,4759.3,10.90138193]
[1756039431266,1e-08,4759.4,4759.3,11.56138193]
[1756039431501,1e-08,4759.4,4759.3,11.86458193]
[1756039431664,1e-08,4759.4,4759.3,14.54578193]
[1756039432188,1e-08,4759.4,4759.3,14.08358193]
[1756039432382,1e-08,4759.4,4759.3,13.78038193]
[1756039432586,0.29610001,4759.4,4759.3,7.79658193]
[1756039432759,0.29610001,4759.4,4759.3,3.80134532]
[1756039432964,0.29610001,4759.4,4759.3,7.31034532]
[1756039435663,0.29600001,4759.4,4759.3,7.31034532]
[1756039436380,0.29900001,4759.4,4759.3,7.31034532]
[1756039436572,0.29900001,4759.4,4759.3,3.71714932]
[1756039436775,0.29900001,4759.4,4759.3,7.22514932]
[1756039437715,0.29600001,4759.4,4759.3,7.22514932]
[1756039437868,0.29600001,4759.4,4759.3,8.20778593]
[1756039438070,0.29900001,4759.4,4759.3,8.20778593]
[1756039438274,0.29900001,4759.4,4759.3,7.22514932]
[1756039441611,0.29900001,4759.4,4759.3,1.616]
[1756039441775,0.29900001,4759.4,4759.3,5.124]
[1756039442176,0.29900001,4759.4,4759.3,7.22514932]
[1756039442611,0.40380001,4759.4,4759.3,7.22514932]
[1756039442827,0.40380001,4759.4,4759.3,1.616]
[1756039443109,0.40380001,4759.4,4759.3,5.125]
[1756039443713,0.40080001,4759.4,4759.3,7.22614932]
[1756039443886,0.29600001,4759.4,4759.3,7.22614932]
[1756039444082,0.79600001,4759.4,4759.3,7.22614932]
[1756039444282,0.29600001,4759.4,4759.3,7.22614932]
[1756039444589,1e-08,4759.4,4759.3,8.16936734]
[1756039445115,1e-08,4759.4,4759.3,8.46906734]
[1756039446908,0.50000001,4759.4,4759.3,8.46906734]
[1756039447122,0.50000001,4759.4,4759.3,8.55327234]
[1756039447433,0.50000001,4759.4,4759.3,8.25357234]
[1756039447725,1e-08,4759.4,4759.3,8.25357234]
[1756039447937,0.50000001,4759.4,4759.3,8.25357234]
[1756039450438,0.50000001,4759.4,4759.3,8.55327234]
[1756039451146,0.81160001,4759.4,4759.3,8.25357234]
[1756039451349,0.81160001,4759.4,4759.3,3.80135432]
[1756039451529,0.81160001,4759.4,4759.3,7.22514932]
[1756039452131,0.96540001,4759.4,4759.3,7.22514932]
[1756039452535,0.50000001,4759.4,4759.3,7.52484932]
[1756039453334,0.50000001,4759.4,4759.3,7.98704932]
[1756039454533,0.50000001,4759.4,4759.3,9.05635734]
[1756039456014,0.50000001,4759.4,4759.3,7.98704932]
[1756039456751,0.50000001,4759.4,4759.3,7.98804932]
[1756039458850,0.50000001,4759.4,4759.3,8.48804932]
[1756039459734,1e-08,4759.4,4759.3,8.48804932]
[1756039461751,1e-08,4759.4,4759.3,10.70404932]
[1756039461960,1e-08,4759.4,4759.3,9.77905734]
[1756039464763,1e-08,4759.4,4759.3,9.88385734]
[1756039465965,1e-08,4759.4,4759.3,5.91365734]
[1756039466275,1e-08,4759.4,4759.3,9.12295734]
[1756039467460,1e-08,4759.4,4759.3,9.88635734]
[1756039468548,1e-08,4759.4,4759.3,9.42975734]
[1756039469661,0.28640001,4759.4,4759.3,5.61395734]
[1756039469939,0.28640001,4759.4,4759.3,7.83094932]
[1756039470969,1e-08,4759.4,4759.3,7.83094932]
[1756039472274,0.28640001,4759.4,4759.3,7.83094932]
[1756039477055,0.78640001,4759.4,4759.3,2.117]
[1756039477258,0.78640001,4759.4,4759.3,5.125]
[1756039477259,1.25580001,4759.4,4759.3,5.125]
[1756039477460,1.38338001,4759.4,4759.3,5.125]
[1756039480184,1.38338001,4759.4,4759.3,1.617]
[1756039480403,1.38338001,4759.4,4759.3,3.509]
[1756039483799,1.38338001,4759.4,4759.3,0.001]
[1756039484268,1.38338001,4759.4,4759.3,3.509]
[1756039484968,8.42338001,4759.4,4759.3,3.509]
[1756039487189,8.52818001,4759.4,4759.3,3.509]
[1756039487782,14.28928519,4759.4,4759.3,0.001]
[1756039488081,15.37426197,4759.4,4759.3,0.001]
[1756039489086,14.87426197,4759.4,4759.3,0.001]
[1756039489297,11.48128179,4759.4,4759.3,0.001]
[1756039489512,11.98128179,4759.4,4759.3,0.001]
[1756039489820,7.93120001,4759.4,4759.3,0.001]
[1756039489985,7.93120001,4759.4,4759.3,2.10214932]
[1756039490189,7.93120001,4759.4,4759.3,0.001]
[1756039490404,7.93120001,4759.4,4759.3,2.10214932]
[1756039491527,7.64480001,4759.4,4759.3,2.86554932]
[1756039491689,7.93120001,4759.4,4759.3,3.517]
[1756039491890,7.93120001,4759.4,4759.3,5.61814932]
[1756039492123,7.93120001,4759.4,4759.3,3.517]
[1756039492791,7.93120001,4759.4,4759.3,5.61814932]
[1756039493207,7.93120001,4759.4,4759.3,3.517]
[1756039493410,8.39100001,4759.4,4759.3,3.517]
[1756039493708,8.39100001,4759.4,4759.3,0.001]
[1756039493908,8.39100001,4759.4,4759.3,3.517]
[1756039494308,7.64480001,4759.4,4759.3,3.517]
[1756039494730,7.54000001,4759.4,4759.3,5.61814932]
[1756039494929,7.64480001,4759.4,4759.3,5.61814932]
[1756039495441,7.64480001,4759.4,4759.3,6.36084932]
[1756039495791,7.14480001,4759.4,4759.3,6.36084932]
[1756039495990,7.64480001,4759.4,4759.3,6.36084932]
[1756039496388,7.64480001,4759.4,4759.3,5.92834932]
[1756039496616,7.64480001,4759.4,4759.3,5.61814932]
[1756039497921,0.60480001,4759.4,4759.3,5.92834932]
[1756039498120,0.89540001,4759.4,4759.3,0.001]
[1756039498316,1.06563177,4759.4,4759.3,3.518]
[1756039498639,0.89540001,4759.4,4759.3,0.001]
[1756039498932,1.35520001,4759.4,4759.3,3.517]
[1756039499904,0.89540001,4759.4,4759.3,3.517]
[1756039502022,1.35520001,4759.4,4759.3,3.517]
[1756039503051,0.89540001,4759.4,4759.3,3.517]
[1756039504147,1.35520001,4759.4,4759.3,3.517]
[1756039504448,4.46391918,4759.4,4759.3,0.001]
[1756039504655,4.91751793,4759.4,4759.3,0.001]
[1756039504950,5.24637098,4759.4,4759.3,0.001]
[1756039505465,5.24640859,4759.4,4759.3,0.001]
[1756039505812,5.33065759,4759.4,4759.3,0.001]
[1756039506949,8.33065759,4759.4,4759.3,0.001]
[1756039507330,11.84565759,4759.4,4759.3,0.001]
[1756039508225,12.41270304,4759.4,4759.3,0.001]
[1756039509763,4.84794481,4759.4,4759.3,0.001]
[1756039509944,0.60480001,4759.4,4759.3,2.84484932]
[1756039510527,0.10480001,4759.4,4759.3,2.84484932]
[1756039510934,0.60480001,4759.4,4759.3,2.84484932]
[1756039511132,0.10480001,4759.4,4759.3,3.9131371]
[1756039511733,0.60480001,4759.4,4759.3,3.9131371]
[1756039514665,1e-08,4759.4,4759.3,3.88318155]
[1756039514846,0.50000001,4759.4,4759.3,3.98798155]
[1756039515031,0.50000001,4759.4,4759.3,4.59278155]
[1756039517366,0.50000001,4759.4,4759.3,4.48798155]
[1756039517535,0.50000001,4759.4,4759.3,2.98719377]
[1756039517738,0.50000001,4759.4,4759.3,5.89839377]
[1756039517966,0.50000001,4759.4,4759.3,0.28124445]
[1756039518163,0.90500001,4759.4,4759.3,3.516]
[1756039518362,0.50000001,4759.4,4759.3,5.92734932]
[1756039518552,0.50000001,4759.4,4759.3,7.32430602]
[1756039520873,0.50000001,4759.4,4759.3,7.82430602]
[1756039521444,0.50000001,4759.4,4759.3,7.92910602]
[1756039522949,0.50000001,4759.4,4759.3,7.93810602]
[1756039523361,0.50000001,4759.4,4759.3,7.93910602]
[1756039523559,0.50000001,4759.4,4759.3,3.01714932]
[1756039523769,0.50000001,4759.4,4759.3,5.93734932]
[1756039524451,0.50000001,4759.4,4759.3,2.41234932]
[1756039524679,0.50000001,4759.4,4759.3,5.93734932]
[1756039525277,0.50000001,4759.4,4759.3,5.62714932]
[1756039525448,0.56690001,4759.4,4759.3,5.62714932]
[1756039526383,0.50000001,4759.4,4759.3,5.62714932]
[1756039527084,0.56690001,4759.4,4759.3,0.001]
[1756039527271,0.67908001,4759.4,4759.3,3.526]
[1756039527455,1.10918001,4759.4,4759.3,3.526]
[1756039527980,0.67908001,4759.4,4759.3,3.526]
[1756039528162,0.67908001,4759.4,4759.3,5.62714932]
[1756039528363,0.56690001,4759.4,4759.3,3.526]
[1756039528754,0.56690001,4759.4,4759.3,5.62714932]
[1756039529454,0.56690001,4759.4,4759.3,3.526]
[1756039531184,0.99700001,4759.4,4759.3,3.526]
[1756039531481,0.99700001,4759.4,4759.3,5.62714932]
[1756039531681,0.56690001,4759.4,4759.3,5.62714932]
[1756039532055,0.56690001,4759.4,4759.3,6.35754932]
[1756039532056,0.50000001,4759.4,4759.3,6.35754932]
[1756039533590,0.50000001,4759.4,4759.3,5.62514932]
[1756039533795,0.79200001,4759.4,4759.3,2.10214932]
[1756039534004,0.79200001,4759.4,4759.3,5.62514932]
[1756039534182,0.50000001,4759.4,4759.3,5.62514932]
[1756039534577,0.50000001,4759.4,4759.3,5.92424932]
[1756039535086,0.79200001,4759.4,4759.3,0.001]
[1756039535260,0.79200001,4759.4,4759.3,5.62514932]
[1756039535455,0.50000001,4759.4,4759.3,5.92424932]
[1756039535667,0.50000001,4759.4,4759.3,7.37330589]
[1756039535891,0.50000001,4759.4,4759.3,7.47810589]
[1756039536858,0.50000001,4759.4,4759.3,3.95510589]
[1756039537067,0.50000001,4759.4,4759.3,7.37430589]
[1756039537270,0.50000001,4759.4,4759.3,2.83254932]
[1756039537469,0.50000001,4759.4,4759.3,2.10214932]
[1756039537790,0.89680001,4759.4,4759.3,5.62614932]
[1756039539488,0.60480001,4759.4,4759.3,5.62614932]
[1756039539694,0.60480001,4759.4,4759.3,5.92524932]
[1756039539901,0.60480001,4759.4,4759.3,6.35654932]
[1756039540077,0.50000001,4759.4,4759.3,7.36392726]
[1756039541066,0.79470001,4759.4,4759.3,2.10214932]
[1756039541275,0.79470001,4759.4,4759.3,5.62614932]
[1756039541910,0.60480001,4759.4,4759.3,5.62614932]
[1756039542119,0.60480001,4759.4,4759.3,5.92524932]
[1756039542265,0.89950001,4759.4,4759.3,0.001]
[1756039542469,1.33330001,4759.4,4759.3,0.001]
[1756039542689,1.46863001,4759.4,4759.3,3.527]
[1756039545417,1.46863001,4759.4,4759.3,0.001]
[1756039545418,6.56973519,4759.4,4759.3,0.001]
[1756039545584,7.02366131,4759.4,4759.3,0.001]
[1756039545790,7.35251,4759.4,4759.3,0.001]
[1756039548629,8.01196992,4759.4,4759.3,0.001]
[1756039549612,7.6829752,4759.4,4759.3,0.001]
[1756039549817,7.5781752,4759.4,4759.3,0.001]
[1756039550114,8.2101402,4759.4,4759.3,0.001]
[1756039550505,11.7411402,4759.4,4759.3,0.001]
[1756039550881,13.55373485,4759.4,4759.3,0.001]
[1756039551691,13.92308776,4759.4,4759.3,0.001]
[1756039551894,0.88327002,4759.4,4759.3,0.001]
[1756039552105,0.13533001,4759.4,4759.3,0.001]
[1756039552308,1e-08,4759.4,4759.3,0.001]
[1756039552800,0.50000001,4759.4,4759.3,0.2954]
[1756039553488,0.82884736,4759.4,4759.3,0.2954]
[1756039553819,0.82884736,4759.4,4759.3,2.86904932]
[1756039554226,0.50000001,4759.4,4759.3,2.86904932]
[1756039555093,0.50000001,4759.4,4759.3,3.88087692]
[1756039557515,1e-08,4759.4,4759.3,3.88087692]
[1756039558316,0.50000001,4759.4,4759.3,3.88087692]
[1756039558622,1e-08,4759.4,4759.3,3.88087692]
[1756039558993,0.50000001,4759.4,4759.3,3.88087692]
[1756039560210,0.50000001,4759.4,4759.3,3.98567692]
[1756039562808,0.50000001,4759.4,4759.3,6.03334932]
[1756039563215,0.50000001,4759.4,4759.3,5.92854932]
[1756039563613,0.50000001,4759.4,4759.3,2.39654932]
[1756039563794,0.89370001,4759.4,4759.3,5.63414932]
[1756039564219,0.60480001,4759.4,4759.3,5.92854932]
[1756039564595,0.89370001,4759.4,4759.3,3.533]
[1756039564795,1.32240001,4759.4,4759.3,3.533]
[1756039565000,1.75664001,4759.4,4759.3,3.533]
[1756039565328,1.75664001,4759.4,4759.3,0.001]
[1756039565329,1.32240001,4759.4,4759.3,0.001]
[1756039565690,1.32240001,4759.4,4759.3,3.534]
[1756039567205,0.89370001,4759.4,4759.3,3.534]
[1756039568318,1.32240001,4759.4,4759.3,3.534]
[1756039569199,0.89370001,4759.4,4759.3,3.534]
[1756039571649,0.60480001,4759.4,4759.3,3.534]
[1756039571844,0.60480001,4759.4,4759.3,3.8284]
[1756039572022,0.89370001,4759.4,4759.3,3.534]
[1756039573239,1.32240001,4759.4,4759.3,3.534]
[1756039573750,0.60480001,4759.4,4759.3,3.534]
[1756039574050,1.37128001,4759.4,4759.3,3.534]
[1756039574717,1.66018001,4759.4,4759.3,0.001]
[1756039574918,2.08888001,4759.4,4759.3,3.53]
[1756039575648,1.66018001,4759.4,4759.3,3.53]
[1756039575944,2.08888001,4759.4,4759.3,3.53]
[1756039576611,2.08888001,4759.4,4759.3,0.001]
[1756039576815,2.08888001,4759.4,4759.3,3.529]
[1756039577360,7.18998519,4759.4,4759.3,0.001]
[1756039579750,14.22998519,4759.4,4759.3,0.001]
[1756039584058,14.6832552,4759.4,4759.3,0.001]
[1756039584355,14.22998519,4759.4,4759.3,0.001]
[1756039585145,14.55884449,4759.4,4759.3,0.001]
[1756039587455,15.01211399,4759.4,4759.3,0.001]
[1756039587962,15.67491399,4759.4,4759.3,0.001]
[1756039588123,16.24145165,4759.4,4759.3,0.001]
[1756039588730,17.59070565,4759.4,4759.3,0.001]
[1756039588942,17.22088787,4759.4,4759.3,0.001]
[1756039589457,16.89202857,4759.4,4759.3,0.001]
[1756039591546,3.26132593,4758.9,4758.8,0.021]
[1756039591724,43.86407898,4758.9,4758.8,0.021]
[1756039591926,44.40037898,4758.9,4758.8,0.021]
[1756039592261,45.27307059,4758.9,4758.8,0.021]
[1756039592428,45.27307059,4758.9,4758.8,1e-08]
[1756039592634,44.51837003,4758.9,4758.8,1e-08]
[1756039592833,44.60264703,4758.9,4758.8,1e-08]
[1756039593247,44.93161271,4758.9,4758.8,1e-08]
[1756039596240,44.61695504,4758.9,4758.8,1e-08]
[1756039596441,44.93127118,4758.9,4758.8,1e-08]
[1756039596653,1.16,4758.4,4758.3,0.001]
[1756039596852,18.80428175,4758.4,4758.3,0.001]
[1756039597060,49.23578175,4758.4,4758.3,0.001]
[1756039597372,49.56476159,4758.4,4758.3,0.001]
[1756039597670,48.99919606,4758.4,4758.3,0.001]
[1756039598168,49.76110473,4758.4,4758.3,0.001]
[1756039598373,50.4605392,4758.4,4758.3,0.001]
[1756039599760,50.5448252,4758.4,4758.3,0.001]
[1756039600863,50.1133252,4758.4,4758.3,0.001]
[1756039601068,20.1133252,4758.4,4758.3,0.001]
[1756039601264,20.1133252,4758.4,4758.3,0.3105]
[1756039601265,11.71930107,4758.4,4758.3,0.3105]
[1756039601572,11.16879999,4758.4,4758.3,0.7615]
[1756039601760,11.30379999,4758.4,4758.3,0.7615]
[1756039602068,7.64379999,4758.4,4758.3,0.7615]
[1756039602669,0.1048,4758.4,4758.3,2.8630909]
[1756039602875,0.5,4758.4,4758.3,2.8630909]
[1756039603045,0.6048,4758.4,4758.3,3.35966725]
[1756039604458,0.6048,4758.4,4758.3,2.8630909]
[1756039614805,0.1048,4758.4,4758.3,2.8630909]
[1756039615089,0.5,4758.4,4758.3,2.8630909]
[1756039624715,0.5,4758.6,4758.5,2.10150257]
[1756039624884,0.5,4758.6,4758.5,9.47050257]
[1756039625082,0.5,4758.6,4758.5,11.04977476]
[1756039627296,0.002,4758.8,4758.7,2.10141425]
[1756039627517,0.502,4758.8,4758.7,2.40001425]
[1756039627725,0.002,4758.8,4758.7,2.40001425]
[1756039627889,0.502,4758.8,4758.7,2.84561425]
[1756039628088,0.502,4758.8,4758.7,4.37098782]
[1756039629683,0.502,4758.8,4758.7,7.88998782]
[1756039631929,0.7872,4758.8,4758.7,2.10141425]
[1756039632139,0.7872,4758.8,4758.7,5.62041425]
[1756039633247,0.5,4758.4,4758.3,2.1025542]
[1756039633533,1.2478,4758.4,4758.3,0.001]
[1756039633825,1.2478,4758.4,4758.3,3.52]
[1756039634213,1.2478,4758.4,4758.3,0.001]
[1756039634537,1.38326,4758.4,4758.3,3.521]
[1756039634824,1.38326,4758.4,4758.3,5.6225909]
[1756039635032,1.2478,4758.4,4758.3,5.6225909]
[1756039635888,1.2478,4758.4,4758.3,3.521]
[1756039636928,1.2478,4758.4,4758.3,0.001]
[1756039637230,1.2478,4758.4,4758.3,3.52]
[1756039637591,1.2478,4758.4,4758.3,0.001]
[1756039637786,1.2478,4758.4,4758.3,3.519]
[1756039637787,0.92066,4758.4,4758.3,3.519]
[1756039637992,0.7852,4758.4,4758.3,5.6205909]
[1756039638404,0.7852,4758.4,4758.3,3.519]
[1756039638807,0.7852,4758.4,4758.3,5.6205909]
[1756039640833,0.7852,4758.4,4758.3,3.519]
[1756039641208,0.7852,4758.4,4758.3,5.6205909]
[1756039642107,0.7852,4758.4,4758.3,3.519]
[1756039643552,0.7852,4758.4,4758.3,5.6205909]
[1756039643845,0.7852,4758.4,4758.3,2.1025909]
[1756039644019,0.7852,4758.4,4758.3,5.6195909]
[1756039644339,0.7852,4758.4,4758.3,3.518]
[1756039644912,0.7852,4758.4,4758.3,5.6195909]
[1756039645608,0.7852,4758.4,4758.3,3.518]
[1756039646733,0.7852,4758.4,4758.3,5.6195909]
[1756039646969,0.7852,4758.4,4758.3,2.1025909]
[1756039647141,0.7852,4758.4,4758.3,3.517]
[1756039647665,0.7852,4758.4,4758.3,0.001]
[1756039647851,0.7852,4758.4,4758.3,5.6185909]
[1756039648389,0.7852,4758.4,4758.3,0.001]